[Event "Titled Tuesday Blitz January 18 2022"]
[White "Gracia Alvarez, Gerardo Antonio"]
[Black "Prohorov, Olexandr"]
[WhiteFideId "5109124"]
[BlackFideId "14105578"]
[WhiteElo "2139"]
[BlackElo "1993"]
[Result "1-0"]
[Round "11"]
[TimeControl "180+1"]
[Date "2022.01.18"]
[WhiteClock "0:00:03"]
[BlackClock "0:00:02"]

1. e4 {[%clk 0:03:00]}  c5 {[%clk 0:02:59]} 2. Be2 {[%clk 0:03:01]}  Nc6 {[%clk 0:02:58]} 3. d3 {[%clk 0:03:01]}  g6 {[%clk 0:02:57]} 4. f4 {[%clk 0:03:01]}  Bg7 {[%clk 0:02:56]} 5. Nf3 {[%clk 0:03:02]}  d6 {[%clk 0:02:56]} 6. O-O {[%clk 0:03:02]}  Nf6 {[%clk 0:02:53]} 7. Qe1 {[%clk 0:03:03]}  Nd4 {[%clk 0:02:47]} 8. Nxd4 {[%clk 0:02:58]}  cxd4 {[%clk 0:02:48]} 9. Nd2 {[%clk 0:02:55]}  Qc7 {[%clk 0:02:45]} 10. Bd1 {[%clk 0:02:52]}  Bg4 {[%clk 0:02:40]} 11. Nf3 {[%clk 0:02:51]}  Bxf3 {[%clk 0:02:36]} 12. Rxf3 {[%clk 0:02:51]}  Rc8 {[%clk 0:02:12]} 13. Bd2 {[%clk 0:02:24]}  Qb6 {[%clk 0:02:09]} 14. Rb1 {[%clk 0:02:21]}  Ng4 {[%clk 0:02:02]} 15. Kh1 {[%clk 0:01:44]}  h5 {[%clk 0:02:02]} 16. h3 {[%clk 0:01:38]}  Nf6 {[%clk 0:02:01]} 17. e5 {[%clk 0:01:35]}  Nd5 {[%clk 0:01:39]} 18. Qe4 {[%clk 0:01:28]}  e6 {[%clk 0:01:37]} 19. exd6 {[%clk 0:01:06]}  Qxd6 {[%clk 0:01:36]} 20. c3 {[%clk 0:01:00]}  dxc3 {[%clk 0:01:29]} 21. bxc3 {[%clk 0:01:01]}  O-O {[%clk 0:01:21]} 22. c4 {[%clk 0:00:58]}  Nc3 {[%clk 0:01:07]} 23. Bxc3 {[%clk 0:00:56]}  Bxc3 {[%clk 0:01:08]} 24. Rxb7 {[%clk 0:00:51]}  Rb8 {[%clk 0:00:55]} 25. Bb3 {[%clk 0:00:51]}  f5 {[%clk 0:00:49]} 26. Qe2 {[%clk 0:00:22]}  Rxb7 {[%clk 0:00:46]} 27. c5 {[%clk 0:00:23]}  Qe7 {[%clk 0:00:38]} 28. Rg3 {[%clk 0:00:22]}  Kh7 {[%clk 0:00:35]} 29. Rg5 {[%clk 0:00:20]}  Rf6 {[%clk 0:00:23]} 30. Qf3 {[%clk 0:00:11]}  Rc7 {[%clk 0:00:21]} 31. g4 {[%clk 0:00:08]}  fxg4 {[%clk 0:00:20]} 32. hxg4 {[%clk 0:00:08]}  Rxc5 {[%clk 0:00:11]} 33. Rxc5 {[%clk 0:00:09]}  Qxc5 {[%clk 0:00:12]} 34. Qb7+ {[%clk 0:00:09]}  Kh6 {[%clk 0:00:12]} 35. g5+ {[%clk 0:00:09]}  Qxg5 {[%clk 0:00:12]} 36. fxg5+ {[%clk 0:00:10]}  Kxg5 {[%clk 0:00:12]} 37. Qc6 {[%clk 0:00:07]}  Be5 {[%clk 0:00:08]} 38. Qe4 {[%clk 0:00:05]}  Bf4 {[%clk 0:00:03]} 39. Bxe6 {[%clk 0:00:03]}  Bd6 {[%clk 0:00:02]} 40. d4 {[%clk 0:00:03]} 1-0


[Site "https://www.chess.com"]

[Event "Titled Tuesday Blitz January 18 2022"]
[White "Guseva, Marina"]
[Black "Kekic, Armin"]
[WhiteFideId "4149351"]
[BlackFideId "14401274"]
[WhiteElo "2232"]
[BlackElo "2156"]
[Result "1-0"]
[Round "11"]
[TimeControl "180+1"]
[Date "2022.01.18"]
[WhiteClock "0:00:14"]
[BlackClock "0:00:08"]

1. d4 {[%clk 0:03:00]}  d6 {[%clk 0:02:58]} 2. Nf3 {[%clk 0:02:59]}  Nc6 {[%clk 0:02:58]} 3. c4 {[%clk 0:02:57]}  e5 {[%clk 0:02:58]} 4. Nc3 {[%clk 0:02:46]}  exd4 {[%clk 0:02:55]} 5. Nxd4 {[%clk 0:02:46]}  Nf6 {[%clk 0:02:56]} 6. e4 {[%clk 0:02:43]}  Be7 {[%clk 0:02:54]} 7. Be2 {[%clk 0:02:42]}  O-O {[%clk 0:02:54]} 8. O-O {[%clk 0:02:41]}  Re8 {[%clk 0:02:55]} 9. f3 {[%clk 0:02:38]}  h6 {[%clk 0:02:54]} 10. Be3 {[%clk 0:02:35]}  Bf8 {[%clk 0:02:53]} 11. Qd2 {[%clk 0:02:33]}  Bd7 {[%clk 0:02:53]} 12. Rfe1 {[%clk 0:02:31]}  a5 {[%clk 0:02:53]} 13. Rad1 {[%clk 0:02:28]}  a4 {[%clk 0:02:49]} 14. Bf1 {[%clk 0:02:26]}  Nxd4 {[%clk 0:02:38]} 15. Bxd4 {[%clk 0:02:25]}  Bc6 {[%clk 0:02:38]} 16. Nd5 {[%clk 0:02:22]}  Nxd5 {[%clk 0:02:36]} 17. cxd5 {[%clk 0:02:21]}  Bd7 {[%clk 0:02:36]} 18. Rc1 {[%clk 0:02:12]}  c5 {[%clk 0:02:36]} 19. dxc6 {[%clk 0:02:12]}  bxc6 {[%clk 0:02:36]} 20. Red1 {[%clk 0:02:09]}  Qb8 {[%clk 0:02:33]} 21. Bc4 {[%clk 0:02:06]}  Be6 {[%clk 0:02:32]} 22. Bxe6 {[%clk 0:02:04]}  Rxe6 {[%clk 0:02:33]} 23. Rxc6 {[%clk 0:02:01]}  a3 {[%clk 0:02:19]} 24. b3 {[%clk 0:01:45]}  Qb5 {[%clk 0:02:18]} 25. Qc2 {[%clk 0:01:35]}  Qh5 {[%clk 0:02:13]} 26. Bf2 {[%clk 0:01:28]}  Ra5 {[%clk 0:02:09]} 27. b4 {[%clk 0:01:19]}  Rg5 {[%clk 0:02:08]} 28. Bg3 {[%clk 0:01:05]}  d5 {[%clk 0:01:40]} 29. Rc8 {[%clk 0:00:53]}  f6 {[%clk 0:00:41]} 30. Qc5 {[%clk 0:00:48]}  Re8 {[%clk 0:00:39]} 31. Qc6 {[%clk 0:00:32]}  Rxc8 {[%clk 0:00:37]} 32. Qxc8 {[%clk 0:00:32]}  Qf7 {[%clk 0:00:18]} 33. Bd6 {[%clk 0:00:27]}  h5 {[%clk 0:00:13]} 34. Bxf8 {[%clk 0:00:24]}  Qxf8 {[%clk 0:00:13]} 35. Qxf8+ {[%clk 0:00:22]}  Kxf8 {[%clk 0:00:14]} 36. Rxd5 {[%clk 0:00:22]}  Rxd5 {[%clk 0:00:08]} 37. exd5 {[%clk 0:00:22]}  Ke7 {[%clk 0:00:09]} 38. Kf2 {[%clk 0:00:22]}  Kd6 {[%clk 0:00:10]} 39. Ke3 {[%clk 0:00:22]}  Kxd5 {[%clk 0:00:11]} 40. Kd3 {[%clk 0:00:22]}  h4 {[%clk 0:00:09]} 41. h3 {[%clk 0:00:19]}  g5 {[%clk 0:00:09]} 42. Kc3 {[%clk 0:00:18]}  f5 {[%clk 0:00:10]} 43. Kb3 {[%clk 0:00:15]}  Kd4 {[%clk 0:00:10]} 44. b5 {[%clk 0:00:15]}  Ke3 {[%clk 0:00:11]} 45. b6 {[%clk 0:00:15]}  Kf2 {[%clk 0:00:12]} 46. b7 {[%clk 0:00:16]}  Kxg2 {[%clk 0:00:12]} 47. b8=Q {[%clk 0:00:16]}  Kxh3 {[%clk 0:00:11]} 48. Qe5 {[%clk 0:00:15]}  f4 {[%clk 0:00:08]} 49. Qxg5 {[%clk 0:00:14]} 1-0


[Site "https://www.chess.com"]

[Event "Titled Tuesday Blitz January 18 2022"]
[White "Hasangatin, Ramil"]
[Black "Villalba, Marcelo"]
[WhiteFideId "4122160"]
[BlackFideId "3701859"]
[WhiteElo "2375"]
[BlackElo "2169"]
[Result "1/2-1/2"]
[Round "11"]
[TimeControl "180+1"]
[Date "2022.01.18"]
[WhiteClock "0:00:40"]
[BlackClock "0:00:03"]

1. e4 {[%clk 0:03:00]}  e5 {[%clk 0:02:59]} 2. Nf3 {[%clk 0:03:01]}  Nc6 {[%clk 0:02:59]} 3. Bb5 {[%clk 0:03:01]}  a6 {[%clk 0:02:59]} 4. Ba4 {[%clk 0:03:02]}  Nf6 {[%clk 0:02:59]} 5. Bxc6 {[%clk 0:03:02]}  dxc6 {[%clk 0:02:58]} 6. d3 {[%clk 0:03:03]}  Bd6 {[%clk 0:02:56]} 7. Bg5 {[%clk 0:03:02]}  O-O {[%clk 0:02:53]} 8. Nbd2 {[%clk 0:03:01]}  Qe7 {[%clk 0:02:46]} 9. Qe2 {[%clk 0:03:01]}  Qe6 {[%clk 0:02:46]} 10. Nc4 {[%clk 0:02:59]}  Nd7 {[%clk 0:02:44]} 11. O-O {[%clk 0:02:56]}  f6 {[%clk 0:02:44]} 12. Be3 {[%clk 0:02:55]}  Bc5 {[%clk 0:02:40]} 13. Nfd2 {[%clk 0:02:50]}  Qe7 {[%clk 0:02:39]} 14. Kh1 {[%clk 0:02:47]}  b6 {[%clk 0:02:22]} 15. a4 {[%clk 0:02:43]}  a5 {[%clk 0:02:22]} 16. f4 {[%clk 0:02:41]}  Bxe3 {[%clk 0:02:19]} 17. Nxe3 {[%clk 0:02:41]}  exf4 {[%clk 0:02:00]} 18. Rxf4 {[%clk 0:02:42]}  Ne5 {[%clk 0:01:56]} 19. Rf2 {[%clk 0:02:38]}  Be6 {[%clk 0:01:53]} 20. b3 {[%clk 0:02:38]}  Rad8 {[%clk 0:01:50]} 21. Raf1 {[%clk 0:02:38]}  c5 {[%clk 0:01:48]} 22. Nf3 {[%clk 0:02:32]}  Ng4 {[%clk 0:01:38]} 23. Nxg4 {[%clk 0:02:32]}  Bxg4 {[%clk 0:01:38]} 24. Qe3 {[%clk 0:02:31]}  Bxf3 {[%clk 0:01:35]} 25. gxf3 {[%clk 0:02:29]}  f5 {[%clk 0:01:30]} 26. Rg1 {[%clk 0:02:23]}  Rf7 {[%clk 0:01:18]} 27. Rfg2 {[%clk 0:02:23]}  Rd6 {[%clk 0:00:51]} 28. Qg5 {[%clk 0:02:11]}  Qxg5 {[%clk 0:00:43]} 29. Rxg5 {[%clk 0:02:12]}  fxe4 {[%clk 0:00:43]} 30. fxe4 {[%clk 0:02:11]}  Rdf6 {[%clk 0:00:42]} 31. h3 {[%clk 0:02:02]}  Rf2 {[%clk 0:00:41]} 32. R1g2 {[%clk 0:02:00]}  Rxg2 {[%clk 0:00:39]} 33. Kxg2 {[%clk 0:01:59]}  Rf6 {[%clk 0:00:37]} 34. Rd5 {[%clk 0:01:58]}  Rd6 {[%clk 0:00:37]} 35. Rf5 {[%clk 0:01:49]}  g6 {[%clk 0:00:35]} 36. Rf2 {[%clk 0:01:43]}  Kg7 {[%clk 0:00:34]} 37. Kg3 {[%clk 0:01:42]}  Rf6 {[%clk 0:00:32]} 38. Re2 {[%clk 0:01:06]}  Rf1 {[%clk 0:00:30]} 39. Kg2 {[%clk 0:01:03]}  Rf4 {[%clk 0:00:27]} 40. Rf2 {[%clk 0:01:00]}  Rxf2+ {[%clk 0:00:26]} 41. Kxf2 {[%clk 0:01:01]}  Kf6 {[%clk 0:00:26]} 42. Kg3 {[%clk 0:01:01]}  g5 {[%clk 0:00:17]} 43. h4 {[%clk 0:00:56]}  Kg6 {[%clk 0:00:12]} 44. hxg5 {[%clk 0:00:49]}  Kxg5 {[%clk 0:00:11]} 45. Kh3 {[%clk 0:00:49]}  Kh5 {[%clk 0:00:09]} 46. Kg3 {[%clk 0:00:49]}  Kg5 {[%clk 0:00:09]} 47. Kf3 {[%clk 0:00:49]}  c6 {[%clk 0:00:05]} 48. Kg3 {[%clk 0:00:49]}  Kh5 {[%clk 0:00:04]} 49. Kf4 {[%clk 0:00:50]}  Kg6 {[%clk 0:00:04]} 50. Kg4 {[%clk 0:00:50]}  b5 {[%clk 0:00:02]} 51. Kf4 {[%clk 0:00:49]}  Kf6 {[%clk 0:00:02]} 52. Kg4 {[%clk 0:00:48]}  Kg6 {[%clk 0:00:02]} 53. Kh4 {[%clk 0:00:49]}  Kh6 {[%clk 0:00:03]} 54. Kg4 {[%clk 0:00:40]}  Kg6 {[%clk 0:00:03]} 1/2-1/2


[Site "https://www.chess.com"]

[Event "Titled Tuesday Blitz January 18 2022"]
[White "Hjartarson, Johann"]
[Black "Pakleza, Zbigniew"]
[WhiteFideId "2300044"]
[BlackFideId "1119290"]
[WhiteElo "2484"]
[BlackElo "2467"]
[Result "0-1"]
[Round "11"]
[TimeControl "180+1"]
[Date "2022.01.18"]
[WhiteClock "0:00:01"]
[BlackClock "0:00:03"]

1. Nf3 {[%clk 0:03:00]}  d5 {[%clk 0:02:54]} 2. g3 {[%clk 0:03:00]}  Nf6 {[%clk 0:02:54]} 3. Bg2 {[%clk 0:03:01]}  Bf5 {[%clk 0:02:54]} 4. O-O {[%clk 0:02:59]}  e6 {[%clk 0:02:55]} 5. b3 {[%clk 0:02:57]}  Be7 {[%clk 0:02:54]} 6. Bb2 {[%clk 0:02:56]}  O-O {[%clk 0:02:55]} 7. c4 {[%clk 0:02:56]}  c6 {[%clk 0:02:54]} 8. d3 {[%clk 0:02:55]}  h6 {[%clk 0:02:55]} 9. Nbd2 {[%clk 0:02:55]}  a5 {[%clk 0:02:55]} 10. a3 {[%clk 0:02:54]}  Nbd7 {[%clk 0:02:54]} 11. Qc2 {[%clk 0:02:52]}  Bh7 {[%clk 0:02:52]} 12. Rfe1 {[%clk 0:02:49]}  Qb6 {[%clk 0:02:49]} 13. Bc3 {[%clk 0:02:47]}  Bc5 {[%clk 0:02:39]} 14. e3 {[%clk 0:02:43]}  Rfd8 {[%clk 0:02:35]} 15. h3 {[%clk 0:02:29]}  Be7 {[%clk 0:02:28]} 16. e4 {[%clk 0:02:13]}  Nc5 {[%clk 0:02:05]} 17. Bd4 {[%clk 0:02:03]}  dxe4 {[%clk 0:01:59]} 18. dxe4 {[%clk 0:02:01]}  Qc7 {[%clk 0:01:28]} 19. Re3 {[%clk 0:01:53]}  Nfd7 {[%clk 0:01:10]} 20. Qb2 {[%clk 0:01:37]}  Bf6 {[%clk 0:01:09]} 21. Bxf6 {[%clk 0:01:29]}  Nxf6 {[%clk 0:01:10]} 22. e5 {[%clk 0:01:27]}  Nfd7 {[%clk 0:01:05]} 23. Qc3 {[%clk 0:01:20]}  Qb6 {[%clk 0:00:55]} 24. Bf1 {[%clk 0:01:16]}  Nf8 {[%clk 0:00:50]} 25. Rae1 {[%clk 0:01:08]}  Rd7 {[%clk 0:00:48]} 26. b4 {[%clk 0:00:52]}  axb4 {[%clk 0:00:49]} 27. axb4 {[%clk 0:00:52]}  Na6 {[%clk 0:00:50]} 28. b5 {[%clk 0:00:46]}  Nc5 {[%clk 0:00:49]} 29. bxc6 {[%clk 0:00:36]}  bxc6 {[%clk 0:00:50]} 30. Nb3 {[%clk 0:00:35]}  Ra3 {[%clk 0:00:33]} 31. Nfd4 {[%clk 0:00:32]}  Nxb3 {[%clk 0:00:20]} 32. Nxb3 {[%clk 0:00:31]}  Rb7 {[%clk 0:00:19]} 33. c5 {[%clk 0:00:20]}  Qa7 {[%clk 0:00:07]} 34. Qc4 {[%clk 0:00:14]}  Nd7 {[%clk 0:00:06]} 35. Nd4 {[%clk 0:00:12]}  Ra4 {[%clk 0:00:05]} 36. Qc3 {[%clk 0:00:11]}  Rc7 {[%clk 0:00:04]} 37. Rc1 {[%clk 0:00:06]}  Bg6 {[%clk 0:00:05]} 38. h4 {[%clk 0:00:06]}  Qb8 {[%clk 0:00:04]} 39. Be2 {[%clk 0:00:05]}  Rb7 {[%clk 0:00:05]} 40. h5 {[%clk 0:00:05]}  Bh7 {[%clk 0:00:05]} 41. Bg4 {[%clk 0:00:04]}  Nxe5 {[%clk 0:00:05]} 42. Nxe6 {[%clk 0:00:01]}  f6 {[%clk 0:00:03]} 0-1


[Site "https://www.chess.com"]

[Event "Titled Tuesday Blitz January 18 2022"]
[White "Ivanov, Oleg"]
[Black "Yurovskykh, Oleksandr"]
[WhiteFideId "4103114"]
[BlackFideId "14134020"]
[WhiteElo "2813"]
[BlackElo "2292"]
[Result "1-0"]
[Round "11"]
[TimeControl "180+1"]
[Date "2022.01.18"]
[WhiteClock "0:00:33"]
[BlackClock "0:00:03"]

1. c4 {[%clk 0:03:00]}  c6 {[%clk 0:02:59]} 2. d4 {[%clk 0:02:56]}  d5 {[%clk 0:02:58]} 3. Nf3 {[%clk 0:02:57]}  Nf6 {[%clk 0:02:58]} 4. cxd5 {[%clk 0:02:56]}  cxd5 {[%clk 0:02:58]} 5. Nc3 {[%clk 0:02:56]}  Nc6 {[%clk 0:02:59]} 6. Bf4 {[%clk 0:02:57]}  Ne4 {[%clk 0:02:58]} 7. e3 {[%clk 0:02:55]}  Nxc3 {[%clk 0:02:58]} 8. bxc3 {[%clk 0:02:55]}  e6 {[%clk 0:02:55]} 9. Bd3 {[%clk 0:02:53]}  Bd6 {[%clk 0:02:55]} 10. Bxd6 {[%clk 0:02:51]}  Qxd6 {[%clk 0:02:55]} 11. O-O {[%clk 0:02:51]}  h6 {[%clk 0:02:42]} 12. c4 {[%clk 0:02:51]}  dxc4 {[%clk 0:02:41]} 13. Bxc4 {[%clk 0:02:51]}  O-O {[%clk 0:02:41]} 14. Rc1 {[%clk 0:02:50]}  Bd7 {[%clk 0:02:29]} 15. d5 {[%clk 0:02:38]}  exd5 {[%clk 0:02:27]} 16. Qxd5 {[%clk 0:02:37]}  Qxd5 {[%clk 0:02:26]} 17. Bxd5 {[%clk 0:02:38]}  Rfd8 {[%clk 0:02:23]} 18. Rfd1 {[%clk 0:02:38]}  Be8 {[%clk 0:02:22]} 19. e4 {[%clk 0:02:38]}  Kf8 {[%clk 0:02:21]} 20. h4 {[%clk 0:02:25]}  Rac8 {[%clk 0:02:20]} 21. h5 {[%clk 0:02:23]}  b6 {[%clk 0:02:13]} 22. Kh2 {[%clk 0:02:17]}  Nb4 {[%clk 0:02:00]} 23. Bb3 {[%clk 0:02:04]}  Na6 {[%clk 0:01:46]} 24. Rxc8 {[%clk 0:01:43]}  Rxc8 {[%clk 0:01:45]} 25. Nd4 {[%clk 0:01:43]}  Nc5 {[%clk 0:01:45]} 26. Bd5 {[%clk 0:01:43]}  Bd7 {[%clk 0:01:43]} 27. Kg3 {[%clk 0:01:39]}  Re8 {[%clk 0:01:40]} 28. Kf4 {[%clk 0:01:38]}  f6 {[%clk 0:01:37]} 29. f3 {[%clk 0:01:33]}  Re5 {[%clk 0:01:36]} 30. g4 {[%clk 0:01:28]}  Re7 {[%clk 0:01:26]} 31. Nb3 {[%clk 0:01:18]}  Nxb3 {[%clk 0:01:13]} 32. Bxb3 {[%clk 0:01:16]}  Ke8 {[%clk 0:01:10]} 33. Rc1 {[%clk 0:01:14]}  Kd8 {[%clk 0:01:06]} 34. Bd5 {[%clk 0:01:13]}  Bc8 {[%clk 0:00:55]} 35. Ke3 {[%clk 0:01:07]}  Rc7 {[%clk 0:00:55]} 36. Rd1 {[%clk 0:01:06]}  Ke7 {[%clk 0:00:55]} 37. Kd4 {[%clk 0:01:06]}  Ba6 {[%clk 0:00:49]} 38. f4 {[%clk 0:01:03]}  Bb7 {[%clk 0:00:25]} 39. Rg1 {[%clk 0:00:52]}  Bxd5 {[%clk 0:00:23]} 40. exd5 {[%clk 0:00:53]}  Rc2 {[%clk 0:00:23]} 41. Re1+ {[%clk 0:00:40]}  Kd6 {[%clk 0:00:21]} 42. Re6+ {[%clk 0:00:39]}  Kd7 {[%clk 0:00:21]} 43. g5 {[%clk 0:00:40]}  hxg5 {[%clk 0:00:16]} 44. fxg5 {[%clk 0:00:39]}  fxg5 {[%clk 0:00:08]} 45. Rg6 {[%clk 0:00:39]}  Rg2 {[%clk 0:00:08]} 46. Rxg7+ {[%clk 0:00:38]}  Kd6 {[%clk 0:00:09]} 47. Rg6+ {[%clk 0:00:39]}  Kd7 {[%clk 0:00:09]} 48. h6 {[%clk 0:00:38]}  Rh2 {[%clk 0:00:09]} 49. Ke5 {[%clk 0:00:37]}  g4 {[%clk 0:00:09]} 50. Rg7+ {[%clk 0:00:37]}  Kd8 {[%clk 0:00:09]} 51. h7 {[%clk 0:00:38]}  Rh5+ {[%clk 0:00:03]} 52. Kf4 {[%clk 0:00:33]} 1-0


[Site "https://www.chess.com"]

[Event "Titled Tuesday Blitz January 18 2022"]
[White "Jary, Sergey"]
[Black "Nesterov, Arseniy"]
[WhiteFideId "14110350"]
[BlackFideId "24198455"]
[WhiteElo "2260"]
[BlackElo "2489"]
[Result "1-0"]
[Round "11"]
[TimeControl "180+1"]
[Date "2022.01.18"]
[WhiteClock "0:00:27"]
[BlackClock "0:00:03"]

1. e4 {[%clk 0:03:00]}  e5 {[%clk 0:02:59]} 2. Nf3 {[%clk 0:03:00]}  Nc6 {[%clk 0:03:00]} 3. d4 {[%clk 0:03:01]}  exd4 {[%clk 0:03:00]} 4. Bc4 {[%clk 0:03:01]}  Nf6 {[%clk 0:03:00]} 5. O-O {[%clk 0:03:01]}  Nxe4 {[%clk 0:03:00]} 6. Re1 {[%clk 0:03:02]}  d5 {[%clk 0:03:00]} 7. Bxd5 {[%clk 0:03:02]}  Qxd5 {[%clk 0:03:01]} 8. Nc3 {[%clk 0:03:02]}  Qa5 {[%clk 0:03:01]} 9. Nxe4 {[%clk 0:03:02]}  Be6 {[%clk 0:03:01]} 10. Bd2 {[%clk 0:03:02]}  Bb4 {[%clk 0:03:01]} 11. Bxb4 {[%clk 0:03:02]}  Qxb4 {[%clk 0:03:00]} 12. a3 {[%clk 0:03:02]}  Qb6 {[%clk 0:02:29]} 13. Qd3 {[%clk 0:02:49]}  h6 {[%clk 0:02:05]} 14. b4 {[%clk 0:02:48]}  O-O {[%clk 0:02:00]} 15. Nc5 {[%clk 0:02:43]}  Rae8 {[%clk 0:01:28]} 16. h3 {[%clk 0:02:33]}  a6 {[%clk 0:01:09]} 17. Rad1 {[%clk 0:02:28]}  Qb5 {[%clk 0:01:03]} 18. Nxe6 {[%clk 0:02:25]}  fxe6 {[%clk 0:00:56]} 19. Nxd4 {[%clk 0:02:19]}  Nxd4 {[%clk 0:00:51]} 20. Qxd4 {[%clk 0:02:16]}  Qf5 {[%clk 0:00:50]} 21. c4 {[%clk 0:02:10]}  c6 {[%clk 0:00:49]} 22. f3 {[%clk 0:02:06]}  Qg6 {[%clk 0:00:47]} 23. Kh2 {[%clk 0:02:03]}  Re7 {[%clk 0:00:36]} 24. f4 {[%clk 0:01:53]}  Ref7 {[%clk 0:00:31]} 25. g3 {[%clk 0:01:50]}  Re7 {[%clk 0:00:20]} 26. Kg2 {[%clk 0:01:50]}  Kh7 {[%clk 0:00:19]} 27. Qd3 {[%clk 0:01:46]}  Rf5 {[%clk 0:00:15]} 28. h4 {[%clk 0:01:46]}  Ref7 {[%clk 0:00:10]} 29. Kh2 {[%clk 0:01:38]}  Qg4 {[%clk 0:00:06]} 30. Rxe6 {[%clk 0:01:32]}  Rf8 {[%clk 0:00:04]} 31. Rd2 {[%clk 0:01:28]}  Kh8 {[%clk 0:00:03]} 32. Qe2 {[%clk 0:01:24]}  Qxe2+ {[%clk 0:00:02]} 33. Rdxe2 {[%clk 0:01:24]}  a5 {[%clk 0:00:02]} 34. Kg2 {[%clk 0:01:16]}  axb4 {[%clk 0:00:03]} 35. axb4 {[%clk 0:01:17]}  R5f7 {[%clk 0:00:03]} 36. Rd2 {[%clk 0:01:10]}  Kg8 {[%clk 0:00:03]} 37. h5 {[%clk 0:00:57]}  Ra8 {[%clk 0:00:03]} 38. c5 {[%clk 0:00:53]}  Rf5 {[%clk 0:00:02]} 39. Rd7 {[%clk 0:00:49]}  Rf7 {[%clk 0:00:02]} 40. Ree7 {[%clk 0:00:43]}  Rxe7 {[%clk 0:00:02]} 41. Rxe7 {[%clk 0:00:44]}  Ra7 {[%clk 0:00:02]} 42. Kh3 {[%clk 0:00:43]}  Kf8 {[%clk 0:00:02]} 43. Rc7 {[%clk 0:00:42]}  Kg8 {[%clk 0:00:03]} 44. Kg4 {[%clk 0:00:42]}  Kf8 {[%clk 0:00:03]} 45. Kf5 {[%clk 0:00:42]}  Ra3 {[%clk 0:00:04]} 46. g4 {[%clk 0:00:41]}  Rd3 {[%clk 0:00:02]} 47. Rxb7 {[%clk 0:00:39]}  Rd5+ {[%clk 0:00:02]} 48. Ke4 {[%clk 0:00:39]}  Rd2 {[%clk 0:00:01]} 49. Rc7 {[%clk 0:00:34]}  Rb2 {[%clk 0:00:01]} 50. Rxc6 {[%clk 0:00:34]}  Rxb4+ {[%clk 0:00:02]} 51. Ke5 {[%clk 0:00:34]}  Kf7 {[%clk 0:00:02]} 52. Rc7+ {[%clk 0:00:34]}  Kf8 {[%clk 0:00:02]} 53. c6 {[%clk 0:00:34]}  Rb5+ {[%clk 0:00:02]} 54. Ke6 {[%clk 0:00:34]}  Ke8 {[%clk 0:00:01]} 55. Rxg7 {[%clk 0:00:32]}  Kd8 {[%clk 0:00:01]} 56. c7+ {[%clk 0:00:32]}  Kc8 {[%clk 0:00:01]} 57. g5 {[%clk 0:00:31]}  hxg5 {[%clk 0:00:01]} 58. h6 {[%clk 0:00:31]}  gxf4 {[%clk 0:00:01]} 59. h7 {[%clk 0:00:31]}  Rb6+ {[%clk 0:00:02]} 60. Kd5 {[%clk 0:00:29]}  Rh6 {[%clk 0:00:02]} 61. Rg8+ {[%clk 0:00:29]}  Kd7 {[%clk 0:00:03]} 62. h8=Q {[%clk 0:00:29]}  Re6 {[%clk 0:00:03]} 63. Rd8+ {[%clk 0:00:27]}  Kxc7 {[%clk 0:00:03]} 64. Kxe6 {[%clk 0:00:28]}  f3 {[%clk 0:00:03]} 65. Rd6 {[%clk 0:00:27]} 1-0


[Site "https://www.chess.com"]

[Event "Titled Tuesday Blitz January 18 2022"]
[White "Kahlert, Thomas"]
[Black "Novikov, Evgenij"]
[WhiteFideId "4625242"]
[BlackFideId "4125380"]
[WhiteElo "2228"]
[BlackElo "2242"]
[Result "0-1"]
[Round "11"]
[TimeControl "180+1"]
[Date "2022.01.18"]
[WhiteClock "0:01:18"]
[BlackClock "0:01:10"]

1. d4 {[%clk 0:02:56]}  d5 {[%clk 0:02:59]} 2. Nf3 {[%clk 0:02:55]}  Nf6 {[%clk 0:02:59]} 3. c4 {[%clk 0:02:55]}  c6 {[%clk 0:02:59]} 4. e3 {[%clk 0:02:54]}  a6 {[%clk 0:02:59]} 5. Nbd2 {[%clk 0:02:50]}  b5 {[%clk 0:02:58]} 6. b3 {[%clk 0:02:50]}  Bf5 {[%clk 0:02:54]} 7. Nh4 {[%clk 0:02:49]}  Be6 {[%clk 0:02:51]} 8. Bd3 {[%clk 0:02:48]}  g6 {[%clk 0:02:46]} 9. O-O {[%clk 0:02:47]}  Bg7 {[%clk 0:02:46]} 10. Bb2 {[%clk 0:02:43]}  O-O {[%clk 0:02:43]} 11. Nhf3 {[%clk 0:02:40]}  Nbd7 {[%clk 0:02:40]} 12. e4 {[%clk 0:02:40]}  bxc4 {[%clk 0:02:34]} 13. bxc4 {[%clk 0:02:39]}  dxe4 {[%clk 0:02:31]} 14. Nxe4 {[%clk 0:02:38]}  Nxe4 {[%clk 0:02:31]} 15. Bxe4 {[%clk 0:02:38]}  Bxc4 {[%clk 0:02:31]} 16. Re1 {[%clk 0:02:32]}  Bd5 {[%clk 0:02:23]} 17. Rc1 {[%clk 0:02:32]}  e6 {[%clk 0:02:20]} 18. Bb1 {[%clk 0:02:24]}  Rb8 {[%clk 0:02:17]} 19. Ba3 {[%clk 0:02:23]}  Re8 {[%clk 0:02:17]} 20. Rc3 {[%clk 0:02:12]}  Nb6 {[%clk 0:02:13]} 21. Bc5 {[%clk 0:02:08]}  Nc4 {[%clk 0:02:05]} 22. h3 {[%clk 0:01:54]}  Qa5 {[%clk 0:02:03]} 23. Rc1 {[%clk 0:01:47]}  Rb2 {[%clk 0:01:59]} 24. Re2 {[%clk 0:01:31]}  Reb8 {[%clk 0:01:54]} 25. Rxb2 {[%clk 0:01:29]}  Rxb2 {[%clk 0:01:54]} 26. Qd3 {[%clk 0:01:22]}  Qb5 {[%clk 0:01:21]} 27. a3 {[%clk 0:01:22]}  Rb3 {[%clk 0:01:15]} 28. Qe2 {[%clk 0:01:18]}  Rxb1 {[%clk 0:01:10]} 0-1


[Site "https://www.chess.com"]

[Event "Titled Tuesday Blitz January 18 2022"]
[White "Kaufman, Raymond"]
[Black "Golubka, Petro"]
[WhiteFideId "2015056"]
[BlackFideId "14114224"]
[WhiteElo "2321"]
[BlackElo "2392"]
[Result "0-1"]
[Round "11"]
[TimeControl "180+1"]
[Date "2022.01.18"]
[WhiteClock "0:00:37"]
[BlackClock "0:02:19"]

1. e4 {[%clk 0:03:00]}  e5 {[%clk 0:02:58]} 2. Nf3 {[%clk 0:02:59]}  Nc6 {[%clk 0:02:59]} 3. Bb5 {[%clk 0:02:59]}  a6 {[%clk 0:02:58]} 4. Ba4 {[%clk 0:03:00]}  Nf6 {[%clk 0:02:58]} 5. d3 {[%clk 0:02:52]}  d6 {[%clk 0:02:56]} 6. c3 {[%clk 0:02:50]}  Bd7 {[%clk 0:02:56]} 7. O-O {[%clk 0:02:49]}  Be7 {[%clk 0:02:57]} 8. Nbd2 {[%clk 0:02:47]}  O-O {[%clk 0:02:57]} 9. Re1 {[%clk 0:02:47]}  Re8 {[%clk 0:02:58]} 10. Nf1 {[%clk 0:02:42]}  Bf8 {[%clk 0:02:58]} 11. h3 {[%clk 0:02:37]}  h6 {[%clk 0:02:59]} 12. N3h2 {[%clk 0:02:37]}  d5 {[%clk 0:02:57]} 13. Ng3 {[%clk 0:02:32]}  b5 {[%clk 0:02:56]} 14. Bb3 {[%clk 0:02:30]}  Be6 {[%clk 0:02:56]} 15. Qf3 {[%clk 0:02:24]}  a5 {[%clk 0:02:55]} 16. Ng4 {[%clk 0:02:23]}  Nxg4 {[%clk 0:02:54]} 17. hxg4 {[%clk 0:02:23]}  d4 {[%clk 0:02:54]} 18. Nf5 {[%clk 0:02:17]}  a4 {[%clk 0:02:52]} 19. Bxe6 {[%clk 0:02:14]}  fxe6 {[%clk 0:02:52]} 20. Ng3 {[%clk 0:02:11]}  a3 {[%clk 0:02:52]} 21. Nh5 {[%clk 0:02:00]}  axb2 {[%clk 0:02:49]} 22. Bxb2 {[%clk 0:02:01]}  dxc3 {[%clk 0:02:49]} 23. Bxc3 {[%clk 0:02:02]}  Ra3 {[%clk 0:02:49]} 24. Rac1 {[%clk 0:01:56]}  b4 {[%clk 0:02:48]} 25. Bb2 {[%clk 0:01:43]}  Rxd3 {[%clk 0:02:48]} 26. Qe2 {[%clk 0:01:43]}  Rd2 {[%clk 0:02:48]} 27. Qc4 {[%clk 0:01:42]}  Na5 {[%clk 0:02:41]} 28. Qb5 {[%clk 0:01:36]}  c6 {[%clk 0:02:40]} 29. Qxe5 {[%clk 0:01:33]}  Qg5 {[%clk 0:02:24]} 30. f4 {[%clk 0:00:37]}  Qxg4 {[%clk 0:02:19]} 0-1


[Site "https://www.chess.com"]